[Event "*** SCC Grand Prix: Titled Tuesday Blitz"]
[Site "Chess.com"]
[Date "2020.09.08"]
[Round "3"]
[White "Natalya_Buksa"]
[Black "barbosean"]
[Result "1/2-1/2"]
[WhiteElo "2518"]
[BlackElo "2306"]
[TimeControl "180+1"]
[EndTime "10:31:51 PDT"]
[Termination "Game drawn by agreement"]

1. d4 {[%clk 0:03:00.9]} 1... d5 {[%clk 0:02:59.1]} 2. Nc3 {[%clk 0:03:00.2]}
2... Nf6 {[%clk 0:02:51.3]} 3. Bf4 {[%clk 0:03:00]} 3... e6 {[%clk 0:02:42.3]}
4. Nb5 {[%clk 0:02:59]} 4... Na6 {[%clk 0:02:35.6]} 5. e3 {[%clk 0:02:58.3]}
5... c6 {[%clk 0:02:34]} 6. Nc3 {[%clk 0:02:58.2]} 6... Qa5 {[%clk 0:02:18]} 7.
Bd3 {[%clk 0:02:56.9]} 7... Ne4 {[%clk 0:02:09.2]} 8. Ne2 {[%clk 0:02:56.2]}
8... Bb4 {[%clk 0:01:42.3]} 9. Bxe4 {[%clk 0:02:53.6]} 9... dxe4 {[%clk
0:01:41.4]} 10. O-O {[%clk 0:02:54]} 10... f5 {[%clk 0:01:38]} 11. a3 {[%clk
0:02:52.9]} 11... Be7 {[%clk 0:01:32.7]} 12. b4 {[%clk 0:02:43.1]} 12... Qd8
{[%clk 0:01:32.4]} 13. b5 {[%clk 0:02:37.5]} 13... cxb5 {[%clk 0:00:59.9]} 14.
Nxb5 {[%clk 0:02:38.4]} 14... O-O {[%clk 0:00:59.9]} 15. c4 {[%clk 0:02:38.2]}
15... Bd7 {[%clk 0:00:52.4]} 16. Nec3 {[%clk 0:02:38]} 16... Bf6 {[%clk
0:00:38.7]} 17. Qe2 {[%clk 0:02:37.3]} 17... Qa5 {[%clk 0:00:30.5]} 18. Rfc1
{[%clk 0:02:32.9]} 18... Rfd8 {[%clk 0:00:27.4]} 19. Rab1 {[%clk 0:02:20.7]}
19... Bc6 {[%clk 0:00:25.3]} 20. d5 {[%clk 0:01:57.4]} 20... exd5 {[%clk
0:00:24.8]} 21. cxd5 {[%clk 0:01:57.7]} 21... Be8 {[%clk 0:00:25.3]} 22. d6
{[%clk 0:01:50.2]} 22... Bf7 {[%clk 0:00:22.4]} 23. Nc7 {[%clk 0:01:45.4]} 23...
Rab8 {[%clk 0:00:18.9]} 24. N3b5 {[%clk 0:01:25.1]} 24... b6 {[%clk 0:00:12]}
25. Nxa6 {[%clk 0:01:22.6]} 25... Qxa6 {[%clk 0:00:11.7]} 26. d7 {[%clk
0:01:19.5]} 26... Ra8 {[%clk 0:00:10.8]} 27. Nc7 {[%clk 0:01:19]} 27... Qxe2
{[%clk 0:00:10.2]} 28. Nxa8 {[%clk 0:01:19]} 28... g5 {[%clk 0:00:05.7]} 29. Bg3
{[%clk 0:01:15.2]} 29... Ba2 {[%clk 0:00:05.5]} 30. Re1 {[%clk 0:01:08.1]} 30...
Qc2 {[%clk 0:00:05.3]} 31. Rbc1 {[%clk 0:01:02.6]} 31... Qb2 {[%clk 0:00:05.6]}
32. Rc8 {[%clk 0:00:59.3]} 32... Be6 {[%clk 0:00:05.1]} 33. Rd1 {[%clk
0:00:56.8]} 33... Kf7 {[%clk 0:00:04.7]} 34. Nc7 {[%clk 0:00:51.9]} 34... Rxd7
{[%clk 0:00:04.8]} 35. Rf1 {[%clk 0:00:48.9]} 35... Bc4 {[%clk 0:00:03.1]} 36.
Ne8 {[%clk 0:00:48]} 36... Bxf1 {[%clk 0:00:02.1]} 37. Nxf6 {[%clk 0:00:48.5]}
37... Kxf6 {[%clk 0:00:02.4]} 38. h4 {[%clk 0:00:47.2]} 38... Be2 {[%clk
0:00:01.2]} 39. Kh2 {[%clk 0:00:47.5]} 39... Ke6 {[%clk 0:00:01.9]} 40. hxg5
{[%clk 0:00:47.7]} 40... Bg4 {[%clk 0:00:02.4]} 41. Re8+ {[%clk 0:00:47.9]}
41... Re7 {[%clk 0:00:02.8]} 42. Rd8 {[%clk 0:00:47.9]} 42... Kf7 {[%clk
0:00:02.6]} 43. Rd6 {[%clk 0:00:47]} 43... Qe2 {[%clk 0:00:02.6]} 44. Bh4 {[%clk
0:00:45.2]} 44... Ke8 {[%clk 0:00:03.5]} 45. Rc6 {[%clk 0:00:44.6]} 45... Rd7
{[%clk 0:00:03.5]} 46. Rc8+ {[%clk 0:00:44.2]} 46... Rd8 {[%clk 0:00:03.8]} 47.
Rc7 {[%clk 0:00:44.7]} 47... Rd1 {[%clk 0:00:04.2]} 48. g6 {[%clk 0:00:44]}
48... hxg6 {[%clk 0:00:03.8]} 49. Re7+ {[%clk 0:00:44.1]} 49... Kf8 {[%clk
0:00:04.4]} 50. Rxa7 {[%clk 0:00:44.1]} 50... Qe1 {[%clk 0:00:04.3]} 51. Be7+
{[%clk 0:00:44.2]} 51... Ke8 {[%clk 0:00:04.1]} 52. Bh4 {[%clk 0:00:42]} 52...
Qh1+ {[%clk 0:00:04.3]} 53. Kg3 {[%clk 0:00:42.4]} 53... Rg1 {[%clk 0:00:04.7]}
54. Re7+ {[%clk 0:00:38.5]} 54... Kf8 {[%clk 0:00:04.8]} 55. Rh7 {[%clk
0:00:38.9]} 55... Rxg2+ {[%clk 0:00:05.1]} 56. Kf4 {[%clk 0:00:39.4]} 56... Ke8
{[%clk 0:00:04.9]} 57. Rh8+ {[%clk 0:00:38]} 57... Kd7 {[%clk 0:00:04.6]} 58.
Rh7+ {[%clk 0:00:38.6]} 58... Kc6 {[%clk 0:00:05]} 59. Ke5 {[%clk 0:00:39]}
59... Rxf2 {[%clk 0:00:04.8]} 60. Rh6 {[%clk 0:00:37.6]} 60... Kb5 {[%clk
0:00:04.3]} 61. Kf6 {[%clk 0:00:35.8]} 61... Qh2 {[%clk 0:00:04.4]} 62. Kg5
{[%clk 0:00:33.2]} 62... Qe5 {[%clk 0:00:04.1]} 63. Bxf2 {[%clk 0:00:33.1]}
63... Bf3 {[%clk 0:00:03.4]} 64. Bh4 {[%clk 0:00:31.3]} 64... Bh5 {[%clk
0:00:03.3]} 65. Rh7 {[%clk 0:00:29.2]} 65... Qe8 {[%clk 0:00:03.1]} 66. Kf4
{[%clk 0:00:25.5]} 66... Qb8+ {[%clk 0:00:02.9]} 67. Kg5 {[%clk 0:00:24.6]}
67... Qh2 {[%clk 0:00:03.8]} 68. Re7 {[%clk 0:00:22.2]} 68... Qg2+ {[%clk
0:00:04.1]} 69. Kf6 {[%clk 0:00:22.1]} 69... Qa2 {[%clk 0:00:04.6]} 70. Re5+
{[%clk 0:00:21.7]} 70... Ka4 {[%clk 0:00:04.7]} 71. Be1 {[%clk 0:00:21.8]} 71...
b5 {[%clk 0:00:04.5]} 72. Bb4 {[%clk 0:00:21.5]} 72... Qb2 {[%clk 0:00:04.8]}
73. Ke6 {[%clk 0:00:20.9]} 73... f4 {[%clk 0:00:05.1]} 74. Rxe4 {[%clk
0:00:20.2]} 74... Qa2+ {[%clk 0:00:02.8]} 75. Ke7 {[%clk 0:00:18.4]} 75... Kb3
{[%clk 0:00:02.9]} 76. Rxf4 {[%clk 0:00:17.5]} 76... Qe2 {[%clk 0:00:02.9]} 77.
Re4 {[%clk 0:00:17.4]} 77... Qd3 {[%clk 0:00:02.5]} 78. Re5 {[%clk 0:00:17.4]}
78... Bg4 {[%clk 0:00:02.2]} 79. Bd6 {[%clk 0:00:17.5]} 79... Bf5 {[%clk
0:00:01.8]} 80. Rc5 {[%clk 0:00:15.1]} 80... Qxe3+ {[%clk 0:00:01.4]} 81. Re5
{[%clk 0:00:14.1]} 81... Qd4 {[%clk 0:00:01.7]} 82. Rxb5+ {[%clk 0:00:14]} 82...
Ka4 {[%clk 0:00:01.6]} 83. Rb4+ {[%clk 0:00:13.7]} 83... Qxb4 {[%clk 0:00:02.1]}
84. axb4 {[%clk 0:00:14.1]} 84... Kb5 {[%clk 0:00:03]} 85. Kf6 {[%clk
0:00:14.5]} 85... Bb1 {[%clk 0:00:03.6]} 86. Bf8 {[%clk 0:00:14.9]} 86... Bc2
{[%clk 0:00:04.5]} 87. Ke5 {[%clk 0:00:15.3]} 87... Bb1 {[%clk 0:00:05.4]} 88.
Kd4 {[%clk 0:00:15.9]} 88... Bc2 {[%clk 0:00:06.3]} 89. Kc3 {[%clk 0:00:16.2]}
89... Bb1 {[%clk 0:00:07.2]} 90. Bh6 {[%clk 0:00:16.9]} 90... Bf5 {[%clk
0:00:08.1]} 91. Bg5 {[%clk 0:00:17.4]} 91... Bd7 {[%clk 0:00:08.5]} 92. Kb2
{[%clk 0:00:18.3]} 92... Bc8 {[%clk 0:00:09.4]} 93. Kc3 {[%clk 0:00:19.1]} 93...
Bd7 {[%clk 0:00:10.3]} 94. Be7 {[%clk 0:00:19.4]} 94... Bc8 {[%clk 0:00:11.2]}
95. Kd4 {[%clk 0:00:20]} 95... Bd7 {[%clk 0:00:11.4]} 96. Ke5 {[%clk 0:00:20.1]}
96... Bc8 {[%clk 0:00:12.3]} 97. Kf6 {[%clk 0:00:20.2]} 97... Bf5 {[%clk
0:00:12.6]} 1/2-1/2

[Event "*** SCC Grand Prix: Titled Tuesday Blitz"]
[Site "Chess.com"]
[Date "2020.09.08"]
[Round "3"]
[White "Vuk2000"]
[Black "Sibelephant"]
[Result "0-1"]
[WhiteElo "2720"]
[BlackElo "3122"]
[TimeControl "180+1"]
[EndTime "10:32:05 PDT"]
[Termination "Sibelephant won by resignation"]

1. d4 {[%clk 0:03:00]} 1... Nf6 {[%clk 0:02:58.8]} 2. Bg5 {[%clk 0:03:00.4]}
2... Ne4 {[%clk 0:02:55]} 3. Bf4 {[%clk 0:03:00.4]} 3... c5 {[%clk 0:02:55.3]}
4. f3 {[%clk 0:03:00.1]} 4... Qa5+ {[%clk 0:02:55.1]} 5. c3 {[%clk 0:03:00.2]}
5... Nf6 {[%clk 0:02:55.2]} 6. d5 {[%clk 0:03:00.3]} 6... e6 {[%clk 0:02:55.2]}
7. e4 {[%clk 0:02:59.4]} 7... exd5 {[%clk 0:02:55.5]} 8. exd5 {[%clk 0:02:59.9]}
8... d6 {[%clk 0:02:52.6]} 9. Qd2 {[%clk 0:02:59.2]} 9... Be7 {[%clk 0:02:51.8]}
10. c4 {[%clk 0:02:59]} 10... Qd8 {[%clk 0:02:51.2]} 11. Bd3 {[%clk 0:02:49.7]}
11... Nbd7 {[%clk 0:02:39]} 12. Nc3 {[%clk 0:02:17.9]} 12... O-O {[%clk
0:02:36.4]} 13. Nge2 {[%clk 0:02:08.8]} 13... Nh5 {[%clk 0:02:35.5]} 14. Be3
{[%clk 0:02:05.3]} 14... Ne5 {[%clk 0:02:35.7]} 15. O-O {[%clk 0:02:00]} 15...
g6 {[%clk 0:02:30.1]} 16. Rae1 {[%clk 0:01:36.2]} 16... Re8 {[%clk 0:02:29.6]}
17. Nf4 {[%clk 0:01:24.9]} 17... Ng7 {[%clk 0:02:25.4]} 18. g4 {[%clk
0:01:11.3]} 18... f5 {[%clk 0:02:20.8]} 19. h3 {[%clk 0:01:06.2]} 19... Bf6
{[%clk 0:02:12.2]} 20. b3 {[%clk 0:00:50.9]} 20... Bd7 {[%clk 0:02:02.3]} 21.
Bb1 {[%clk 0:00:45.2]} 21... Qa5 {[%clk 0:01:59.3]} 22. Ne4 {[%clk 0:00:41.1]}
22... Qxd2 {[%clk 0:01:53.4]} 23. Nxf6+ {[%clk 0:00:40.2]} 23... Kf7 {[%clk
0:01:53.9]} 24. Bxd2 {[%clk 0:00:36]} 24... Kxf6 {[%clk 0:01:53.8]} 25. g5+
{[%clk 0:00:30.1]} 25... Kf7 {[%clk 0:01:53.6]} 26. Bc3 {[%clk 0:00:29.6]} 26...
b6 {[%clk 0:01:25.7]} 27. Bxe5 {[%clk 0:00:26.6]} 27... Rxe5 {[%clk 0:01:05.7]}
28. Rxe5 {[%clk 0:00:26.3]} 28... dxe5 {[%clk 0:01:06]} 29. Nd3 {[%clk
0:00:26.4]} 29... f4 {[%clk 0:01:06.5]} 30. Nxe5+ {[%clk 0:00:24.8]} 30... Ke7
{[%clk 0:01:06.8]} 31. Re1 {[%clk 0:00:21]} 31... Kd6 {[%clk 0:01:02.2]} 32.
Nxd7 {[%clk 0:00:11.2]} 32... Kxd7 {[%clk 0:01:02.3]} 33. Re4 {[%clk 0:00:11]}
33... Rf8 {[%clk 0:01:01.7]} 34. Kf2 {[%clk 0:00:10.4]} 34... Ne8 {[%clk
0:00:56.5]} 35. a3 {[%clk 0:00:09.7]} 35... Nd6 {[%clk 0:00:56.2]} 36. Re6
{[%clk 0:00:09.6]} 36... b5 {[%clk 0:00:53.2]} 37. cxb5 {[%clk 0:00:08.5]} 37...
Nxb5 {[%clk 0:00:54.1]} 38. Ra6 {[%clk 0:00:08.5]} 38... Rb8 {[%clk 0:00:51]}
39. Bd3 {[%clk 0:00:08.5]} 39... Nc7 {[%clk 0:00:50.4]} 40. Rxa7 {[%clk
0:00:05.5]} 40... Rxb3 {[%clk 0:00:50.8]} 41. Be4 {[%clk 0:00:05.1]} 41... Rb2+
{[%clk 0:00:47.6]} 42. Ke1 {[%clk 0:00:05.2]} 42... Kd6 {[%clk 0:00:48.3]} 43.
h4 {[%clk 0:00:05.3]} 43... c4 {[%clk 0:00:48.5]} 44. Kd1 {[%clk 0:00:03.9]}
44... Nb5 {[%clk 0:00:47.5]} 45. Ra6+ {[%clk 0:00:03.9]} 45... Ke5 {[%clk
0:00:45]} 46. d6 {[%clk 0:00:02.4]} 46... Nxd6 {[%clk 0:00:43.4]} 47. Ra5+
{[%clk 0:00:02.8]} 47... Ke6 {[%clk 0:00:43.8]} 48. Bd5+ {[%clk 0:00:03.1]}
48... Kd7 {[%clk 0:00:44.2]} 49. Ra7+ {[%clk 0:00:03.2]} 49... Kd8 {[%clk
0:00:44.8]} 50. Rxh7 {[%clk 0:00:03.7]} 50... Nf5 {[%clk 0:00:42.3]} 51. h5
{[%clk 0:00:03.6]} 51... gxh5 {[%clk 0:00:34.9]} 52. Kc1 {[%clk 0:00:03.9]}
52... Rg2 {[%clk 0:00:34.3]} 53. Rxh5 {[%clk 0:00:03]} 53... c3 {[%clk
0:00:33.7]} 54. Rh1 {[%clk 0:00:02.3]} 54... Nd4 {[%clk 0:00:27.6]} 55. Be4
{[%clk 0:00:01.7]} 55... Nb3+ {[%clk 0:00:26.7]} 56. Kd1 {[%clk 0:00:02]} 56...
c2+ {[%clk 0:00:21.6]} 57. Bxc2 {[%clk 0:00:01.6]} 57... Rd2+ {[%clk 0:00:22.1]}
58. Ke1 {[%clk 0:00:02.5]} 58... Rxc2 {[%clk 0:00:23]} 59. Rh8+ {[%clk 0:00:03]}
59... Ke7 {[%clk 0:00:22.6]} 60. Rh4 {[%clk 0:00:03.1]} 60... Rc4 {[%clk
0:00:22.1]} 61. Ke2 {[%clk 0:00:03.4]} 61... Nc5 {[%clk 0:00:21.7]} 62. g6
{[%clk 0:00:03.3]} 62... Kf6 {[%clk 0:00:21.8]} 63. Rg4 {[%clk 0:00:03.4]} 63...
Kg7 {[%clk 0:00:21.1]} 64. Kd2 {[%clk 0:00:03.2]} 64... Ne6 {[%clk 0:00:19]} 65.
Kd3 {[%clk 0:00:03.3]} 65... Ra4 {[%clk 0:00:19.6]} 66. Kd2 {[%clk 0:00:02]}
66... Rxa3 {[%clk 0:00:19.9]} 67. Ke2 {[%clk 0:00:02.5]} 67... Nd4+ {[%clk
0:00:19.4]} 68. Kf2 {[%clk 0:00:03]} 68... Ra2+ {[%clk 0:00:19]} 69. Kf1 {[%clk
0:00:02.7]} 69... Ne6 {[%clk 0:00:17.9]} 70. Ke1 {[%clk 0:00:02.3]} 70... Ra5
{[%clk 0:00:17.8]} 71. Kf2 {[%clk 0:00:02.7]} 71... Rg5 {[%clk 0:00:17.3]} 72.
Rh4 {[%clk 0:00:03.2]} 72... Kxg6 {[%clk 0:00:17.6]} 73. Rh1 {[%clk 0:00:04.1]}
73... Rc5 {[%clk 0:00:16.8]} 74. Rd1 {[%clk 0:00:04.6]} 74... Rc2+ {[%clk
0:00:16.5]} 75. Kf1 {[%clk 0:00:05.1]} 75... Kf5 {[%clk 0:00:16.8]} 76. Rd5+
{[%clk 0:00:05]} 76... Kf6 {[%clk 0:00:17.2]} 77. Rd3 {[%clk 0:00:04.6]} 77...
Ke5 {[%clk 0:00:17.2]} 78. Rd1 {[%clk 0:00:03.8]} 78... Nd4 {[%clk 0:00:16.9]}
79. Re1+ {[%clk 0:00:04.3]} 79... Kf5 {[%clk 0:00:16.9]} 80. Re8 {[%clk
0:00:04.6]} 80... Rc3 {[%clk 0:00:14.1]} 81. Kg2 {[%clk 0:00:04.5]} 81... Nxf3
{[%clk 0:00:11.7]} 82. Rf8+ {[%clk 0:00:04.4]} 82... Ke4 {[%clk 0:00:11.2]} 83.
Kh3 {[%clk 0:00:03.9]} 83... Ne5+ {[%clk 0:00:10.9]} 84. Kh4 {[%clk 0:00:03.9]}
84... Ng6+ {[%clk 0:00:11.1]} 85. Kg4 {[%clk 0:00:03.2]} 0-1

[Event "*** SCC Grand Prix: Titled Tuesday Blitz"]
[Site "Chess.com"]
[Date "2020.09.08"]
[Round "4"]
[White "NiranjanNavalgund"]
[Black "ChessWarrior3"]
[Result "1-0"]
[WhiteElo "2435"]
[BlackElo "2151"]
[TimeControl "180+1"]
[EndTime "10:34:03 PDT"]
[Termination "NiranjanNavalgund won by resignation"]

1. e4 {[%clk 0:03:00.9]} 1... c5 {[%clk 0:02:58.9]} 2. d4 {[%clk 0:02:57.7]}
2... cxd4 {[%clk 0:02:58.5]} 3. c3 {[%clk 0:02:58.1]} 3... dxc3 {[%clk
0:02:59.4]} 4. Bc4 {[%clk 0:02:56.9]} 4... cxb2 {[%clk 0:02:57.8]} 5. Bxb2
{[%clk 0:02:56.5]} 5... d6 {[%clk 0:02:38.6]} 6. Nf3 {[%clk 0:02:57.4]} 6... Nc6
{[%clk 0:02:37.7]} 7. O-O {[%clk 0:02:56.9]} 7... Bg4 {[%clk 0:02:31.7]} 8.
Bxf7+ {[%clk 0:02:54.4]} 8... Kxf7 {[%clk 0:02:30.3]} 9. Ng5+ {[%clk 0:02:53.6]}
9... Ke8 {[%clk 0:02:27.5]} 10. Qxg4 {[%clk 0:02:53.2]} 10... h6 {[%clk
0:02:21.1]} 11. Qh5+ {[%clk 0:02:52.1]} 11... Kd7 {[%clk 0:02:20.7]} 12. Qg4+
{[%clk 0:02:51.6]} 12... Kc7 {[%clk 0:02:19.9]} 13. Ne6+ {[%clk 0:02:50.9]} 1-0

[Event "*** SCC Grand Prix: Titled Tuesday Blitz"]
[Site "Chess.com"]
[Date "2020.09.08"]
[Round "4"]
[White "aljado"]
[Black "CalinGheorghiu"]
[Result "0-1"]
[WhiteElo "2103"]
[BlackElo "2342"]
[TimeControl "180+1"]
[EndTime "10:35:56 PDT"]
[Termination "CalinGheorghiu won by resignation"]

1. e4 {[%clk 0:03:00.9]} 1... e6 {[%clk 0:02:59.3]} 2. d4 {[%clk 0:02:59.7]}
2... d5 {[%clk 0:02:59.3]} 3. exd5 {[%clk 0:03:00.3]} 3... exd5 {[%clk
0:02:59.3]} 4. c4 {[%clk 0:03:00.9]} 4... Nf6 {[%clk 0:02:58.8]} 5. Nc3 {[%clk
0:03:01.4]} 5... Bb4 {[%clk 0:02:58.3]} 6. Bg5 {[%clk 0:03:01.3]} 6... O-O
{[%clk 0:02:58]} 7. Nf3 {[%clk 0:03:01.6]} 7... h6 {[%clk 0:02:57.3]} 8. Bh4
{[%clk 0:02:58.9]} 8... Nc6 {[%clk 0:02:56.2]} 9. Be2 {[%clk 0:02:58.3]} 9...
Bg4 {[%clk 0:02:51.5]} 10. O-O {[%clk 0:02:57.1]} 10... dxc4 {[%clk 0:02:39.1]}
11. Bxc4 {[%clk 0:02:41.2]} 11... Bxf3 {[%clk 0:02:20.6]} 12. Qxf3 {[%clk
0:02:40.4]} 12... Qxd4 {[%clk 0:02:21.1]} 13. Bxf6 {[%clk 0:02:28.7]} 13... Qxc4
{[%clk 0:02:13.9]} 14. Qg3 {[%clk 0:02:20.3]} 14... g6 {[%clk 0:02:13.6]} 15. h4
{[%clk 0:02:09.5]} 15... Nd4 {[%clk 0:02:02.7]} 16. Qg4 {[%clk 0:01:55]} 16...
Bxc3 {[%clk 0:01:51.8]} 17. Bxd4 {[%clk 0:01:40.6]} 17... Qxd4 {[%clk
0:01:49.8]} 0-1

[Event "*** SCC Grand Prix: Titled Tuesday Blitz"]
[Site "Chess.com"]
[Date "2020.09.08"]
[Round "4"]
[White "Bacyanide"]
[Black "zaur-mammadov"]
[Result "0-1"]
[WhiteElo "2405"]
[BlackElo "2652"]
[TimeControl "180+1"]
[EndTime "10:36:04 PDT"]
[Termination "zaur-mammadov won by resignation"]

1. d4 {[%clk 0:03:00.9]} 1... d5 {[%clk 0:02:59.6]} 2. c4 {[%clk 0:03:01.2]}
2... dxc4 {[%clk 0:02:59.9]} 3. Nf3 {[%clk 0:03:00]} 3... Nf6 {[%clk 0:03:00.4]}
4. e3 {[%clk 0:02:59.8]} 4... e6 {[%clk 0:03:01]} 5. Bxc4 {[%clk 0:02:58.6]}
5... c5 {[%clk 0:03:01.7]} 6. O-O {[%clk 0:02:58.3]} 6... cxd4 {[%clk
0:03:02.4]} 7. exd4 {[%clk 0:02:57.9]} 7... Be7 {[%clk 0:03:02.9]} 8. Nc3 {[%clk
0:02:56.5]} 8... O-O {[%clk 0:03:03.6]} 9. Bg5 {[%clk 0:02:56.2]} 9... Nc6
{[%clk 0:03:04]} 10. a3 {[%clk 0:02:45.1]} 10... h6 {[%clk 0:03:03.7]} 11. Bh4
{[%clk 0:02:43.6]} 11... Nh5 {[%clk 0:03:03.7]} 12. Bxe7 {[%clk 0:02:40.8]}
12... Nxe7 {[%clk 0:03:04.6]} 13. Ne5 {[%clk 0:02:38.4]} 13... Nf6 {[%clk
0:03:05.2]} 14. Qd3 {[%clk 0:02:24.8]} 14... b6 {[%clk 0:03:03.4]} 15. Rad1
{[%clk 0:02:20]} 15... Bb7 {[%clk 0:03:03]} 16. Rfe1 {[%clk 0:02:16.7]} 16...
Rc8 {[%clk 0:03:00.7]} 17. Ba2 {[%clk 0:02:11]} 17... Ned5 {[%clk 0:02:59]} 18.
Bb1 {[%clk 0:02:06.1]} 18... Nf4 {[%clk 0:02:55]} 19. Qg3 {[%clk 0:01:56.4]}
19... N6h5 {[%clk 0:02:48.9]} 20. Qe3 {[%clk 0:01:21]} 20... Nxg2 {[%clk
0:02:46.1]} 21. Qd3 {[%clk 0:01:16]} 21... f5 {[%clk 0:02:46.6]} 22. Ba2 {[%clk
0:01:05.2]} 22... Ngf4 {[%clk 0:02:44.4]} 23. Qe3 {[%clk 0:00:53.6]} 23... Qg5+
{[%clk 0:02:42.8]} 0-1

[Event "*** SCC Grand Prix: Titled Tuesday Blitz"]
[Site "Chess.com"]
[Date "2020.09.08"]
[Round "4"]
[White "snap_man"]
[Black "DarZay"]
[Result "1-0"]
[WhiteElo "2296"]
[BlackElo "2053"]
[TimeControl "180+1"]
[EndTime "10:36:12 PDT"]
[Termination "snap_man won by resignation"]

1. e4 {[%clk 0:02:57.3]} 1... e5 {[%clk 0:02:59.6]} 2. Nf3 {[%clk 0:02:52.6]}
2... Nc6 {[%clk 0:02:59.4]} 3. Bb5 {[%clk 0:02:50]} 3... a6 {[%clk 0:02:55.3]}
4. Ba4 {[%clk 0:02:49.9]} 4... Nge7 {[%clk 0:02:54.8]} 5. O-O {[%clk 0:02:43.9]}
5... d6 {[%clk 0:02:50]} 6. d4 {[%clk 0:02:40.9]} 6... exd4 {[%clk 0:02:49.5]}
7. Nxd4 {[%clk 0:02:28.3]} 7... Bd7 {[%clk 0:02:32.2]} 8. c4 {[%clk 0:02:24.6]}
8... g6 {[%clk 0:02:28.7]} 9. Nc3 {[%clk 0:02:24.3]} 9... Bg7 {[%clk 0:02:28.3]}
10. Nxc6 {[%clk 0:02:24.3]} 10... Nxc6 {[%clk 0:02:26.9]} 11. Be3 {[%clk
0:02:17.7]} 11... O-O {[%clk 0:02:25.9]} 12. c5 {[%clk 0:02:15.4]} 12... dxc5
{[%clk 0:02:20.7]} 13. Bxc5 {[%clk 0:02:14.6]} 13... b5 {[%clk 0:02:16.3]} 14.
Bxf8 {[%clk 0:02:11.8]} 14... Bxf8 {[%clk 0:02:10.1]} 15. Bb3 {[%clk 0:02:10.5]}
15... Bg7 {[%clk 0:02:07.8]} 16. Qd5 {[%clk 0:02:09.2]} 16... Qe7 {[%clk
0:02:06.7]} 17. Rad1 {[%clk 0:02:02.6]} 17... Rd8 {[%clk 0:02:06.4]} 18. Qd2
{[%clk 0:01:59.1]} 18... Bg4 {[%clk 0:02:01.4]} 19. Nd5 {[%clk 0:01:57.6]} 19...
Qc5 {[%clk 0:01:55]} 20. Rc1 {[%clk 0:01:56.6]} 20... Qd6 {[%clk 0:01:47.9]} 21.
Rxc6 {[%clk 0:01:55]} 1-0

[Event "*** SCC Grand Prix: Titled Tuesday Blitz"]
[Site "Chess.com"]
[Date "2020.09.08"]
[Round "4"]
[White "AlexTriapishko"]
[Black "TrickyFortem"]
[Result "1-0"]
[WhiteElo "2738"]
[BlackElo "2455"]
[TimeControl "180+1"]
[EndTime "10:36:15 PDT"]
[Termination "AlexTriapishko won by checkmate"]

1. e4 {[%clk 0:03:00.9]} 1... c5 {[%clk 0:03:00.1]} 2. Nf3 {[%clk 0:02:59.3]}
2... d6 {[%clk 0:03:00.4]} 3. d4 {[%clk 0:02:59.5]} 3... cxd4 {[%clk 0:03:01.3]}
4. Nxd4 {[%clk 0:03:00.3]} 4... Nf6 {[%clk 0:03:01.9]} 5. Nc3 {[%clk 0:03:01]}
5... a6 {[%clk 0:03:02.1]} 6. Be3 {[%clk 0:03:00.9]} 6... Ng4 {[%clk 0:03:01.7]}
7. Bg5 {[%clk 0:02:59.6]} 7... h6 {[%clk 0:03:02.2]} 8. Bh4 {[%clk 0:03:00]}
8... g5 {[%clk 0:03:02.2]} 9. Bg3 {[%clk 0:03:00.6]} 9... Bg7 {[%clk 0:03:02.8]}
10. h3 {[%clk 0:03:01.1]} 10... Ne5 {[%clk 0:03:03.2]} 11. Be2 {[%clk
0:03:00.2]} 11... Nbc6 {[%clk 0:03:03]} 12. Nb3 {[%clk 0:03:00]} 12... b5 {[%clk
0:02:59.7]} 13. a4 {[%clk 0:02:58.6]} 13... b4 {[%clk 0:02:58.9]} 14. Nd5 {[%clk
0:02:59.1]} 14... O-O {[%clk 0:02:54.9]} 15. Ne3 {[%clk 0:02:56.7]} 15... e6
{[%clk 0:02:51.6]} 16. h4 {[%clk 0:02:56.7]} 16... Qe7 {[%clk 0:02:40.4]} 17.
hxg5 {[%clk 0:02:54.4]} 17... hxg5 {[%clk 0:02:41.3]} 18. Qd2 {[%clk 0:02:33.7]}
18... Bb7 {[%clk 0:02:38.2]} 19. Rh5 {[%clk 0:02:29.7]} 19... Rfd8 {[%clk
0:02:34.5]} 20. O-O-O {[%clk 0:02:27.4]} 20... a5 {[%clk 0:02:26.3]} 21. Rdh1
{[%clk 0:02:16.7]} 21... Rac8 {[%clk 0:02:24]} 22. Kb1 {[%clk 0:02:14.9]} 22...
Qf6 {[%clk 0:02:10.9]} 23. Nd1 {[%clk 0:02:10.5]} 23... d5 {[%clk 0:01:56.3]}
24. exd5 {[%clk 0:02:05]} 24... Rxd5 {[%clk 0:01:54.2]} 25. Qxg5 {[%clk
0:02:05.4]} 25... Nd7 {[%clk 0:01:27.3]} 26. Rh8# {[%clk 0:02:04.8]} 1-0

[Event "*** SCC Grand Prix: Titled Tuesday Blitz"]
[Site "Chess.com"]
[Date "2020.09.08"]
[Round "4"]
[White "mortngabriel"]
[Black "NMZanette"]
[Result "1-0"]
[WhiteElo "2401"]
[BlackElo "2192"]
[TimeControl "180+1"]
[EndTime "10:36:57 PDT"]
[Termination "mortngabriel won by resignation"]

1. Nf3 {[%clk 0:03:00.9]} 1... f5 {[%clk 0:02:59.1]} 2. d3 {[%clk 0:03:00.3]}
2... Nf6 {[%clk 0:02:59.1]} 3. e4 {[%clk 0:03:00.5]} 3... d6 {[%clk 0:02:56.8]}
4. Nc3 {[%clk 0:02:49.8]} 4... e5 {[%clk 0:02:56.5]} 5. exf5 {[%clk 0:02:45.7]}
5... Bxf5 {[%clk 0:02:55.9]} 6. d4 {[%clk 0:02:46.6]} 6... e4 {[%clk 0:02:55.1]}
7. Nh4 {[%clk 0:02:42]} 7... Bg4 {[%clk 0:02:47.1]} 8. Be2 {[%clk 0:02:39.3]}
8... Bxe2 {[%clk 0:02:47.1]} 9. Qxe2 {[%clk 0:02:40.2]} 9... d5 {[%clk
0:02:44.7]} 10. Qb5+ {[%clk 0:02:37.8]} 10... Nbd7 {[%clk 0:02:39.7]} 11. Qxb7
{[%clk 0:02:32.3]} 11... Rb8 {[%clk 0:02:29.5]} 12. Qc6 {[%clk 0:02:30.3]} 12...
Rb6 {[%clk 0:02:17.7]} 13. Qa4 {[%clk 0:02:30.4]} 13... Bb4 {[%clk 0:01:47.4]}
14. O-O {[%clk 0:02:21.2]} 14... O-O {[%clk 0:01:47]} 15. Nf5 {[%clk 0:02:18.7]}
15... Bxc3 {[%clk 0:01:24]} 16. bxc3 {[%clk 0:02:17.2]} 16... Ng4 {[%clk
0:01:23.7]} 17. Ne3 {[%clk 0:02:15.7]} 17... Nxh2 {[%clk 0:01:12.5]} 18. Nxd5
{[%clk 0:02:03.1]} 18... Rg6 {[%clk 0:00:58.9]} 19. Kxh2 {[%clk 0:01:48.8]}
19... Qh4+ {[%clk 0:00:52.9]} 20. Kg1 {[%clk 0:01:48.6]} 20... Qg5 {[%clk
0:00:53.4]} 21. Bxg5 {[%clk 0:01:42.5]} 1-0